bitfinex/quotes_BTCUSD_20240617
["timestamp","ask_amount","ask_price","bid_price","bid_amount"]
[1718608308931,3.12670642,66001.0,66000.0,9.29341994]
[1718608309159,2.68246252,66001.0,66000.0,9.18254978]
[1718608309393,2.7498573,66001.0,66000.0,9.18254978]
[1718608309608,3.19857251,66001.0,66000.0,9.18254978]
[1718608309823,3.50159751,66001.0,66000.0,9.18254978]
[1718608310044,3.50852774,66001.0,66000.0,9.18254978]
[1718608310278,3.61510352,66001.0,66000.0,9.18254978]
[1718608310494,3.62910352,66001.0,66000.0,9.18254978]
[1718608310709,3.38584824,66001.0,66000.0,9.18254978]
[1718608310931,3.34007852,66001.0,66000.0,9.18254978]
[1718608311230,3.35507852,66001.0,66000.0,9.18254978]
[1718608311455,3.34107852,66001.0,66000.0,9.18254978]
[1718608311669,3.35507852,66001.0,66000.0,9.13854978]
[1718608312106,3.34107852,66001.0,66000.0,9.13854978]
[1718608312327,3.32707852,66001.0,66000.0,9.13854978]
[1718608312548,3.35937479,66001.0,66000.0,9.13854978]
[1718608312772,3.67639979,66001.0,66000.0,9.13854978]
[1718608312988,3.66239979,66001.0,66000.0,9.13854978]
[1718608313208,3.78949979,66001.0,66000.0,9.13854978]
[1718608313437,3.80349979,66001.0,66000.0,9.13854978]
[1718608313662,3.78949979,66001.0,66000.0,9.08111978]
[1718608313887,4.29168463,66001.0,66000.0,8.69395978]
[1718608314127,3.78598663,66001.0,66000.0,8.19060091]
[1718608314344,3.78598663,66001.0,66000.0,7.83410091]
[1718608314563,4.39146284,66001.0,66000.0,7.39788353]
[1718608314787,4.37746284,66001.0,66000.0,7.38688353]
[1718608315261,4.39146284,66001.0,66000.0,7.38688353]
[1718608315707,4.37746284,66001.0,66000.0,7.38451386]
[1718608315930,4.39146284,66001.0,66000.0,7.38451386]
[1718608316169,4.37746284,66001.0,66000.0,7.38451386]
[1718608316394,4.37746284,66001.0,66000.0,7.34451386]
[1718608316621,4.39146284,66001.0,66000.0,7.34451386]
[1718608316839,4.41518278,66001.0,66000.0,7.30051386]
[1718608317345,4.25351378,66001.0,66000.0,7.30051386]
[1718608317617,4.26751378,66001.0,66000.0,7.30051386]
[1718608317887,3.12972478,66001.0,66000.0,7.22908386]
[1718608318106,3.24266656,66001.0,66000.0,7.22908386]
[1718608318329,3.19720694,66001.0,66000.0,7.22908386]
[1718608318550,3.51423194,66001.0,66000.0,7.22908386]
[1718608318763,3.51423194,66001.0,66000.0,7.18608386]
[1718608318949,3.50023194,66001.0,66000.0,7.18608386]
[1718608319477,3.54579234,66001.0,66000.0,7.18608386]
[1718608319697,3.64345234,66001.0,66000.0,7.18608386]
[1718608320124,3.62945234,66001.0,66000.0,7.18608386]
[1718608320353,3.75655234,66001.0,66000.0,7.15008386]
[1718608320589,3.75655234,66001.0,66000.0,7.12808386]
[1718608321040,3.13728345,66001.0,66000.0,7.12808386]
[1718608321270,3.26438345,66001.0,66000.0,7.12808386]
[1718608321491,3.20482305,66001.0,66000.0,7.12808386]
[1718608321938,2.45912227,66001.0,66000.0,7.12808386]
[1718608322159,2.25912227,66001.0,66000.0,7.12808386]
[1718608322378,2.24512227,66001.0,66000.0,7.12808386]
[1718608322592,2.34512227,66001.0,66000.0,7.12808386]
[1718608322805,2.24512227,66001.0,66000.0,7.12808386]
[1718608323273,2.76214727,66001.0,66000.0,7.12808386]
[1718608323495,2.44512227,66001.0,66000.0,7.12808386]
[1718608323714,2.36812227,66001.0,66000.0,7.12808386]
[1718608323979,2.28212227,66001.0,66000.0,7.12808386]
[1718608324198,2.26812227,66001.0,66000.0,7.12808386]
[1718608324635,2.28212227,66001.0,66000.0,7.12808386]
[1718608325279,2.39612227,66001.0,66000.0,7.12808386]
[1718608326200,2.49612227,66001.0,66000.0,7.12808386]
[1718608326420,3.40977183,66001.0,66000.0,7.12808386]
[1718608326636,3.45548201,66001.0,66000.0,7.12808386]
[1718608328475,3.45442788,66001.0,66000.0,7.12808386]
[1718608328716,3.45442788,66001.0,66000.0,7.09308386]
[1718608329173,4.33909188,66001.0,66000.0,7.03024386]
[1718608329409,4.47699446,66001.0,66000.0,6.08747386]
[1718608329837,4.54034746,66001.0,66000.0,6.08747386]
[1718608330053,4.32189446,66001.0,66000.0,6.08747386]
[1718608330312,4.51279546,66001.0,66000.0,6.06547386]
[1718608330519,4.52679546,66001.0,66000.0,6.06547386]
[1718608330756,4.51279546,66001.0,66000.0,6.06547386]
[1718608330990,4.49879546,66001.0,66000.0,6.06547386]
[1718608331207,5.11885546,66001.0,66000.0,6.06547386]
[1718608331421,4.94195446,66001.0,66000.0,6.06060603]
[1718608331655,4.95595446,66001.0,66000.0,6.06060603]
[1718608331870,5.67669446,66001.0,66000.0,6.06060603]
[1718608332232,5.60339246,66001.0,66000.0,6.02560603]
[1718608332448,5.52839246,66001.0,66000.0,5.94960603]
[1718608332654,5.20372346,66001.0,66000.0,5.94960603]
[1718608332865,5.09333546,66001.0,66000.0,5.81987603]
[1718608333077,5.07933546,66001.0,66000.0,5.81987603]
[1718608333297,5.07933546,66001.0,66000.0,5.79787603]
[1718608333513,5.06905446,66001.0,66000.0,5.79787603]
[1718608333726,4.75202946,66001.0,66000.0,5.79787603]
[1718608333939,3.97146546,66001.0,66000.0,5.79787603]
[1718608334175,3.98546546,66001.0,66000.0,5.79787603]
[1718608334412,3.54134046,66001.0,66000.0,5.79787603]
[1718608335062,3.84436546,66001.0,66000.0,5.79787603]
[1718608335268,4.14766735,66001.0,66000.0,5.59787603]
[1718608335688,4.16166735,66001.0,66000.0,5.59787603]
[1718608336096,5.04633135,66001.0,66000.0,5.49040603]
[1718608336311,5.00034428,66001.0,66000.0,5.46840603]
[1718608336521,5.1190236,66001.0,66000.0,5.46840603]
[1718608336758,5.1190236,66001.0,66000.0,5.43340603]
[1718608336989,4.88450247,66001.0,66000.0,5.43340603]
[1718608337193,4.87050247,66001.0,66000.0,5.43340603]
[1718608337403,4.87050247,66001.0,66000.0,5.41040603]
[1718608337619,4.88450247,66001.0,66000.0,5.37407703]
[1718608337832,5.80008759,66001.0,66000.0,5.37407703]
[1718608338046,5.81408759,66001.0,66000.0,5.35307703]
[1718608338259,6.1041856,66001.0,66000.0,5.31507703]
[1718608338483,6.25699527,66001.0,66000.0,5.31507703]
[1718608338695,6.01470427,66001.0,66000.0,5.31507703]
[1718608338905,5.97870427,66001.0,66000.0,5.31507703]
[1718608339304,5.28148327,66001.0,66000.0,5.31507703]
[1718608339520,5.37778327,66001.0,66000.0,5.31507703]
[1718608339737,5.37778327,66001.0,66000.0,5.27907703]
[1718608339738,5.88977727,66001.0,66000.0,5.27907703]
[1718608339953,5.96342124,66001.0,66000.0,5.27907703]
[1718608340155,5.94942124,66001.0,66000.0,5.27907703]
[1718608340574,5.96342124,66001.0,66000.0,5.27907703]
[1718608340788,5.94942124,66001.0,66000.0,5.27907703]
[1718608341013,5.57703324,66001.0,66000.0,5.27907703]
[1718608341225,5.59103324,66001.0,66000.0,5.27907703]
[1718608341439,5.12448159,66001.0,66000.0,5.27907703]
[1718608341642,5.59169716,66001.0,66000.0,5.27907703]
[1718608341907,5.40209116,66001.0,66000.0,5.23607703]
[1718608342109,4.20820216,66001.0,66000.0,5.23607703]
[1718608342321,4.19420216,66001.0,66000.0,5.23607703]
[1718608342528,4.20820216,66001.0,66000.0,5.23607703]
[1718608343079,4.33138709,66001.0,66000.0,5.23607703]
[1718608343208,4.31738709,66001.0,66000.0,5.23607703]
[1718608343643,4.36838709,66001.0,66000.0,5.23607703]
[1718608344051,4.35438709,66001.0,66000.0,5.23607703]
[1718608344431,4.36838709,66001.0,66000.0,5.23607703]
[1718608344859,4.35438709,66001.0,66000.0,5.23607703]
[1718608345282,4.36838709,66001.0,66000.0,5.23607703]
[1718608347311,4.7937983,66001.0,66000.0,5.23607703]
[1718608348443,4.70434246,66001.0,66000.0,5.23607703]
[1718608350675,4.17421746,66001.0,66000.0,5.23607703]
[1718608350897,3.74819246,66001.0,66000.0,5.23607703]
[1718608351118,3.66038565,66001.0,66000.0,5.23607703]
[1718608351339,3.54819246,66001.0,66000.0,5.23607703]
[1718608351568,3.96355003,66001.0,66000.0,5.23607703]
[1718608352024,3.83721746,66001.0,66000.0,5.23607703]
[1718608352245,3.9355597,66001.0,66000.0,5.23607703]
[1718608352474,3.63419246,66001.0,66000.0,5.23607703]
[1718608352728,3.67119246,66001.0,66000.0,5.23607703]
[1718608352959,3.65719246,66001.0,66000.0,5.23607703]
[1718608353199,3.97421746,66001.0,66000.0,5.23607703]
[1718608354987,3.64319246,66001.0,66000.0,5.23607703]
[1718608355216,3.64719246,66001.0,66000.0,5.23607703]
[1718608355454,3.50189246,66001.0,66000.0,5.23607703]
[1718608355674,3.5645767,66001.0,66000.0,5.23607703]
[1718608355910,3.06155117,66001.0,66000.0,5.23607703]
[1718608356365,2.99412885,66001.0,66000.0,5.23607703]
[1718608356585,2.98412885,66001.0,66000.0,5.23607703]
[1718608357095,3.02907041,66001.0,66000.0,5.23607703]
[1718608357328,2.97777401,66001.0,66000.0,5.23607703]
[1718608357553,2.43161103,66001.0,66000.0,5.57627703]
[1718608357772,2.41661103,66001.0,66000.0,5.57627703]
[1718608357985,2.37054583,66001.0,66000.0,5.57627703]
[1718608358218,2.67357083,66001.0,66000.0,5.57627703]
[1718608358435,2.68357083,66001.0,66000.0,5.57627703]
[1718608358649,2.70161707,66001.0,66000.0,5.57627703]
[1718608358873,2.77761707,66001.0,66000.0,5.57627703]
[1718608359114,2.80561707,66001.0,66000.0,5.57627703]
[1718608360446,2.81561707,66001.0,66000.0,5.57627703]
[1718608360656,2.80561707,66001.0,66000.0,5.57627703]
[1718608360886,2.81561707,66001.0,66000.0,5.57627703]
[1718608361988,3.16864207,66001.0,66000.0,5.57627703]
[1718608362250,3.33604968,66001.0,66000.0,5.57627703]
[1718608362468,4.04741844,66001.0,66000.0,5.57627703]
[1718608362686,3.65451662,66001.0,66000.0,5.57627703]
[1718608364241,3.81381662,66001.0,66000.0,5.23607703]
[1718608364460,4.22918764,66001.0,66000.0,5.23607703]
[1718608364673,3.81381662,66001.0,66000.0,5.23607703]
[1718608365149,3.92616264,66001.0,66000.0,5.23607703]
[1718608366018,4.22918764,66001.0,66000.0,5.23607703]
[1718608366247,3.92616264,66001.0,66000.0,5.23607703]
[1718608366459,3.82616264,66001.0,66000.0,5.41787703]
[1718608366673,3.71381662,66001.0,66000.0,5.41787703]
[1718608366908,3.80358538,66001.0,66000.0,5.56727703]
[1718608367124,3.80358601,66001.0,66000.0,5.56727703]
[1718608367573,4.01684162,66001.0,66000.0,5.56727703]
[1718608367786,3.81381662,66001.0,66000.0,5.56727703]
[1718608368017,3.81390037,66001.0,66000.0,5.56727703]
[1718608368249,3.81390037,66001.0,66000.0,5.23607703]
[1718608368480,4.25917139,66001.0,66000.0,5.23607703]
[1718608368739,4.28122531,66001.0,66000.0,5.23693703]
[1718608369181,4.34187322,66001.0,66000.0,5.23693703]
[1718608369392,4.40336377,66001.0,66000.0,5.23693703]
[1718608369637,5.86097109,66001.0,66000.0,5.06432263]
[1718608369899,6.83059455,66001.0,66000.0,4.18222263]
[1718608370139,6.83059455,66001.0,66000.0,4.13579663]
[1718608370407,6.91147955,66001.0,66000.0,4.13579663]
[1718608370673,7.07252144,66001.0,66000.0,4.13579663]
[1718608370894,7.05852144,66001.0,66000.0,4.13579663]
[1718608371117,6.92763644,66001.0,66000.0,4.13579663]
[1718608371557,6.94163644,66001.0,66000.0,4.12385663]
[1718608371775,6.92763644,66001.0,66000.0,4.09875663]
[1718608371990,6.92763644,66001.0,66000.0,4.06585663]
[1718608372206,6.94163644,66001.0,66000.0,4.06575482]
[1718608372504,6.94163644,66001.0,66000.0,4.06345482]
[1718608372991,6.94163644,66001.0,66000.0,4.03460482]
[1718608373223,6.94163644,66001.0,66000.0,3.98916482]
[1718608373457,7.48449444,66001.0,66000.0,3.95216482]
[1718608374127,7.53449444,66001.0,66000.0,3.95216482]
[1718608374364,7.53449444,66001.0,66000.0,3.91698282]
[1718608374599,7.53449444,66001.0,66000.0,3.67575282]
[1718608374836,8.14948823,66001.0,66000.0,3.54260205]
[1718608375333,8.84948823,66001.0,66000.0,3.37724772]
[1718608375564,8.84948823,66001.0,66000.0,3.36891772]
[1718608375786,8.83548823,66001.0,66000.0,3.30526772]
[1718608376009,8.84948823,66001.0,66000.0,3.30526772]
[1718608376235,8.83548823,66001.0,66000.0,3.14955805]
[1718608376467,8.83548823,66001.0,66000.0,3.06555805]
[1718608376716,8.96258823,66001.0,66000.0,2.54708097]
[1718608376944,8.96258823,66001.0,65973.0,6e-08]
[1718608376945,1.01029297,65974.0,65973.0,6e-08]
[1718608377175,3.07153755,65974.0,65973.0,6e-08]
[1718608377401,0.87414997,65973.0,65972.0,6e-08]
[1718608377651,3.51926742,65973.0,65972.0,6e-08]
[1718608377874,3.74152282,65973.0,65972.0,6e-08]
[1718608378328,3.83116483,65973.0,65972.0,6e-08]
[1718608378549,3.76452282,65973.0,65972.0,6e-08]
[1718608378773,3.95784896,65973.0,65972.0,6e-08]
[1718608379440,3.19002525,65973.0,65972.0,6e-08]
[1718608379662,2.72223587,65973.0,65972.0,6e-08]
[1718608379881,2.78943394,65973.0,65972.0,6e-08]
[1718608380100,2.80343394,65973.0,65972.0,0.15310006]
[1718608380340,2.43308187,65973.0,65972.0,0.15310006]
[1718608380602,2.78103297,65973.0,65972.0,0.34180006]
[1718608380818,2.42308187,65973.0,65972.0,0.34180006]
[1718608381038,2.37308187,65973.0,65972.0,0.34180006]
[1718608381262,2.43708187,65973.0,65972.0,0.34180006]
[1718608381514,2.40908187,65973.0,65972.0,0.34180006]
[1718608381731,2.72223587,65973.0,65972.0,0.34180006]
[1718608381966,2.73623587,65973.0,65972.0,0.34180006]
[1718608382422,3.19258441,65973.0,65972.0,6e-08]
[1718608382653,3.12538987,65973.0,65972.0,6e-08]
[1718608382876,3.60143421,65973.0,65972.0,6e-08]
[1718608383107,2.44708187,65973.0,65972.0,6e-08]
[1718608383321,2.50025881,65973.0,65972.0,6e-08]
[1718608383534,2.90341281,65973.0,65972.0,6e-08]
[1718608383760,2.83623587,65973.0,65972.0,6e-08]
[1718608384457,2.80339578,65973.0,65972.0,6e-08]
[1718608384684,2.90339578,65973.0,65972.0,6e-08]
[1718608385137,3.17228257,65973.0,65972.0,6e-08]
[1718608385359,2.82223587,65973.0,65972.0,6e-08]
[1718608385611,3.13920411,65973.0,65972.0,6e-08]
[1718608385828,3.15320411,65973.0,65972.0,6e-08]
[1718608386282,3.13920411,65973.0,65972.0,6e-08]
[1718608386508,3.22034139,65973.0,65972.0,6e-08]
[1718608387073,3.17439716,65973.0,65972.0,6e-08]
[1718608387300,3.22026691,65973.0,65972.0,6e-08]
[1718608387501,3.20626691,65973.0,65972.0,6e-08]
[1718608387992,2.80311291,65973.0,65972.0,6e-08]
[1718608388235,2.83597563,65973.0,65972.0,6e-08]
[1718608388624,2.84997563,65973.0,65972.0,6e-08]
[1718608389022,2.83597563,65973.0,65972.0,6e-08]
[1718608389500,3.19786504,65973.0,65972.0,6e-08]
[1718608390033,2.79471104,65973.0,65972.0,6e-08]
[1718608390679,2.84997563,65973.0,65972.0,6e-08]
[1718608390891,2.74997563,65973.0,65972.0,6e-08]
[1718608391312,2.73597563,65973.0,65972.0,6e-08]
[1718608391737,2.74997563,65973.0,65972.0,6e-08]
[1718608392189,2.44682163,65973.0,65972.0,6e-08]
[1718608392403,2.43682163,65973.0,65972.0,0.18420006]
[1718608392617,2.43682163,65973.0,65972.0,0.3394]
[1718608392860,2.44682163,65973.0,65972.0,0.3394]
[1718608393299,2.74997563,65973.0,65972.0,0.3394]
[1718608394410,2.24597163,65973.0,65972.0,0.3394]
[1718608394852,2.14597163,65973.0,65972.0,0.3394]
[1718608395069,1.84281763,65973.0,65972.0,0.3394]
[1718608395762,1.81981763,65973.0,65972.0,0.3394]
[1718608396006,1.75519708,65973.0,65972.0,0.3394]
[1718608396228,1.55323771,65973.0,65972.0,0.3394]
[1718608396430,1.14612429,65973.0,65972.0,0.3394]
[1718608396890,0.94648848,65973.0,65972.0,0.3394]
[1718608397123,0.79491148,65973.0,65972.0,0.3394]
[1718608397341,0.94648848,65973.0,65972.0,0.3394]
[1718608397570,1.55279648,65973.0,65972.0,0.3394]
[1718608397834,1.53879648,65973.0,65972.0,0.3394]
[1718608398034,0.79491148,65973.0,65972.0,0.3394]
[1718608398475,0.93248848,65973.0,65972.0,0.3394]
[1718608398702,0.79491148,65973.0,65972.0,0.3394]
[1718608398909,0.79491148,65973.0,65972.0,0.34042215]
[1718608399998,0.38241148,65973.0,65972.0,0.34042215]
[1718608400220,0.38241148,65973.0,65972.0,0.3394]
[1718608400441,0.39641148,65973.0,65972.0,0.46752215]
[1718608400901,0.38241148,65973.0,65972.0,0.46752215]
[1718608401116,0.39641148,65973.0,65972.0,0.46752215]
[1718608401341,0.39641148,65973.0,65972.0,0.51427437]
[1718608401779,0.02276369,65973.0,65972.0,0.51463856]
[1718608402009,0.54718389,65985.0,65984.0,0.38692215]
[1718608402222,0.62322779,65985.0,65984.0,0.51402215]
[1718608403554,0.00839747,65985.0,65984.0,0.51402215]
[1718608403776,0.09844136,65985.0,65984.0,0.51402215]
[1718608403940,0.09004389,65985.0,65984.0,0.513]
[1718608404167,0.09844136,65985.0,65984.0,0.513]
[1718608404366,0.09844136,65985.0,65984.0,0.51402215]
[1718608404545,0.09844136,65985.0,65984.0,0.43730221]
[1718608404743,0.09844136,65985.0,65984.0,0.56440221]
[1718608404951,0.11244136,65985.0,65984.0,0.56440221]
[1718608405151,0.11244136,65985.0,65984.0,0.513]
[1718608405762,0.11244136,65985.0,65984.0,0.51402215]
[1718608406956,0.11244136,65985.0,65984.0,0.513]
[1718608407574,0.11244136,65985.0,65984.0,0.51402215]
[1718608408055,0.03639747,65985.0,65984.0,0.51402215]
[1718608408263,0.03639747,65985.0,65984.0,0.58058037]
[1718608408486,0.028,65985.0,65984.0,0.58058037]
[1718608408948,0.014,65985.0,65984.0,0.58058037]
[1718608409189,0.25116881,65992.0,65990.0,0.1853]
[1718608409421,0.30362279,65991.0,65990.0,0.1853]
[1718608409586,0.31224445,65991.0,65990.0,0.3124]
[1718608409812,1.33984406,65991.0,65990.0,0.1853]
[1718608410170,0.26034526,65991.0,65990.0,0.1853]
[1718608410389,0.41188026,65991.0,65990.0,0.1863]
[1718608410653,0.71495126,65991.0,65990.0,0.1863]
[1718608411367,0.26034526,65991.0,65990.0,0.1863]
[1718608411564,0.71495126,65991.0,65990.0,0.1863]
[1718608411773,0.16070945,65991.0,65990.0,0.1863]
[1718608411997,0.32624445,65991.0,65990.0,0.1853]
[1718608412219,0.02262166,65991.0,65990.0,0.47865221]
[1718608412442,0.178535,65991.0,65990.0,0.4253]
[1718608412670,0.178535,65991.0,65990.0,0.42632215]
[1718608412671,0.03562166,65991.0,65990.0,0.42632215]
[1718608413330,0.03562166,65991.0,65990.0,0.4253]
[1718608414860,0.03562166,65991.0,65990.0,0.42632215]
[1718608415093,0.03562166,65991.0,65990.0,0.48166437]
[1718608415561,0.03562166,65991.0,65990.0,0.42632215]
[1718608416438,0.027,65991.0,65990.0,0.42632215]
[1718608417298,0.013,65991.0,65990.0,0.42632215]
[1718608417517,0.07604389,66000.0,65999.0,0.00102215]
[1718608417743,0.37964668,66000.0,65999.0,0.5559]
[1718608417989,0.38828696,66000.0,65999.0,0.61159222]
[1718608418525,0.16072807,66000.0,65999.0,0.61261437]
[1718608418981,0.31224307,66000.0,65999.0,0.61159222]
[1718608419219,0.31224307,66000.0,65999.0,0.5559]
[1718608419447,0.4032386,66000.0,65999.0,0.5559]
[1718608419683,0.61527307,66000.0,65999.0,0.5559]
[1718608420391,0.62927307,66000.0,65999.0,0.5569]
[1718608420606,0.02264028,66000.0,65999.0,0.61269222]
[1718608423096,0.02264028,66000.0,65999.0,0.61371437]
[1718608423332,0.02264028,66000.0,65999.0,0.61269222]
[1718608423973,0.02264028,66000.0,65999.0,0.5569]
[1718608424636,0.17415528,66000.0,65999.0,0.5569]
[1718608426677,0.17415528,66000.0,65999.0,0.55792215]
[1718608426891,0.02264028,66000.0,65999.0,0.55792215]
[1718608427799,0.014,66000.0,65999.0,0.55792215]
[1718608428032,0.02265576,66000.0,65999.0,0.61371437]
[1718608428665,0.01521833,66000.0,65999.0,0.61371437]
[1718608430382,0.00656257,66000.0,65999.0,0.61371437]
[1718608430601,0.01521833,66000.0,65999.0,0.61371437]
[1718608431264,0.16673333,66000.0,65999.0,0.48661437]
[1718608431474,0.46976333,66000.0,65999.0,0.61269222]
[1718608431866,0.16673333,66000.0,65999.0,0.61269222]
[1718608432096,0.56939914,66000.0,65999.0,0.5569]
[1718608432343,0.46976333,66000.0,65999.0,0.5569]
[1718608433747,0.56939914,66000.0,65999.0,0.5569]
[1718608434191,0.46976333,66000.0,65999.0,0.5569]
[1718608434416,0.16673333,66000.0,65999.0,0.5569]
[1718608434640,0.16673333,66000.0,65999.0,0.61269222]
[1718608434641,0.01521833,66000.0,65999.0,0.61269222]
[1718608434877,0.16673333,66000.0,65999.0,0.61269222]
[1718608435379,0.56939914,66000.0,65999.0,0.5569]
[1718608435605,0.56939914,66000.0,65999.0,0.55775]
[1718608435783,0.87336415,66000.0,65999.0,0.55775]
[1718608436483,0.57033415,66000.0,65999.0,0.55775]
[1718608436698,0.47069834,66000.0,65999.0,0.55775]
[1718608436915,0.57033415,66000.0,65999.0,0.55775]
[1718608437608,0.16766834,66000.0,65999.0,0.55775]
[1718608437831,0.16766834,66000.0,65999.0,0.61362722]
[1718608438263,0.15901258,66000.0,65999.0,0.61362722]
[1718608438699,0.47071486,66000.0,65999.0,0.61362722]
[1718608438877,0.47071486,66000.0,65999.0,0.61464937]
[1718608439103,0.47071486,66000.0,65999.0,0.61362722]
[1718608439740,0.4686642,66000.0,65999.0,0.61362722]
[1718608440420,0.0141192,66000.0,65999.0,0.61362722]
[1718608440649,0.26527001,66000.0,65999.0,0.61362722]
[1718608440866,0.56830001,66000.0,65999.0,0.61362722]
[1718608441108,0.87133001,66000.0,65999.0,0.55775]
[1718608441375,0.89008081,66000.0,65999.0,0.55775]
[1718608441833,1.95513442,66000.0,65999.0,0.00185]
[1718608442711,1.95062251,66000.0,65999.0,0.00185]
[1718608442940,1.95062251,66000.0,65999.0,0.00085]
[1718608443165,2.63807251,66000.0,65999.0,0.00085]
[1718608443387,2.97395007,66000.0,65999.0,0.00085]
[1718608443622,3.41498543,66000.0,65999.0,0.00185]
[1718608444087,3.41498543,66000.0,65999.0,0.00085]
[1718608444088,3.41398543,66000.0,65999.0,0.00085]
[1718608444743,3.41498543,66000.0,65999.0,0.00185]
[1718608445216,3.17147425,66000.0,65999.0,0.00185]
[1718608445459,3.42869774,66000.0,65999.0,0.00285]
[1718608445907,3.41469774,66000.0,65999.0,0.00185]
[1718608446356,3.42869774,66000.0,65999.0,0.00185]
[1718608446588,1.17942561,65973.0,65972.0,0.00085]
[1718608446823,1.3315134,65973.0,65972.0,0.00085]
[1718608447056,1.34015555,65973.0,65972.0,0.00085]
[1718608447271,1.32140475,65973.0,65972.0,0.00085]
[1718608447969,1.34015555,65973.0,65972.0,0.00085]
[1718608448424,1.32140475,65973.0,65972.0,0.00085]
[1718608448860,1.32140475,65973.0,65972.0,0.013645]
[1718608449379,1.34515555,65973.0,65972.0,0.00185]
[1718608449814,1.35415555,65973.0,65972.0,0.00285]
[1718608450069,1.34915555,65973.0,65972.0,0.00085]
[1718608450262,1.34915555,65973.0,65972.0,0.00185]
[1718608450488,1.35715555,65973.0,65972.0,0.00285]
[1718608450719,1.35715555,65973.0,65972.0,0.00185]
[1718608450720,2.11040955,65973.0,65972.0,0.00185]
[1718608450951,2.31580955,65973.0,65972.0,0.00185]
[1718608451174,2.12793685,65973.0,65972.0,0.00285]
[1718608451393,2.43109085,65973.0,65972.0,0.00285]
[1718608451647,2.42109085,65973.0,65972.0,0.00285]
[1718608451871,2.43109085,65973.0,65972.0,0.00285]
[1718608452090,2.42209085,65973.0,65972.0,0.00185]
[1718608452312,2.78524485,65973.0,65972.0,0.00285]
[1718608452546,2.11893685,65973.0,65972.0,0.00285]
[1718608452779,1.73255555,65973.0,65972.0,0.00185]
[1718608453014,0.71509675,65973.0,65972.0,0.00085]
[1718608453237,0.17472994,65973.0,65972.0,0.460845]
[1718608453465,0.03664215,65973.0,65972.0,0.46286715]
[1718608453688,0.57077581,65985.0,65977.0,0.00102215]
[1718608453930,0.00822855,65984.0,65982.0,0.1271]
[1718608454166,0.15977955,65984.0,65983.0,0.44051221]
[1718608454415,0.15977955,65984.0,65983.0,0.44153436]
[1718608454642,0.00822855,65984.0,65983.0,0.44153436]
[1718608455122,0.151542,65988.0,65987.0,0.00102215]
[1718608455346,0.30362979,65988.0,65987.0,0.05788559]
[1718608455573,0.60671479,65988.0,65987.0,0.05686344]
[1718608455795,0.90979979,65988.0,65987.0,0.05686344]
[1718608456020,1.0094356,65988.0,65987.0,0.05686344]
[1718608456242,0.60671479,65988.0,65987.0,0.05686344]
[1718608456488,0.30362979,65988.0,65987.0,0.18498559]
[1718608456753,0.30362979,65988.0,65987.0,0.12812215]
[1718608457178,0.30462979,65988.0,65987.0,0.12812215]
[1718608457645,0.001,65988.0,65987.0,0.12812215]
[1718608458607,0.07604389,65994.0,65992.0,0.00102215]
[1718608458824,0.07604389,65994.0,65983.0,0.06863436]
[1718608458825,0.005,65988.0,65983.0,0.06863436]
[1718608459060,0.005,65988.0,65987.0,0.1271]
[1718608459512,0.151539,65990.0,65987.0,0.1271]
[1718608459724,0.151533,65992.0,65987.0,0.1271]
[1718608459935,0.005,65988.0,65987.0,0.1271]
[1718608460180,0.008,65988.0,65987.0,0.14539222]
[1718608460404,0.005,65988.0,65987.0,0.14539222]
[1718608460884,0.008,65988.0,65987.0,0.14539222]
[1718608461103,0.159542,65988.0,65987.0,0.14539222]
[1718608461333,0.16777325,65988.0,65987.0,0.1271]
[1718608461744,0.16777325,65988.0,65987.0,0.321]
[1718608461745,0.01123125,65988.0,65987.0,0.321]
[1718608462235,0.16277325,65988.0,65987.0,0.321]
[1718608462460,0.31431625,65988.0,65987.0,0.321]
[1718608462670,0.16277325,65988.0,65987.0,0.321]
[1718608462879,0.16777325,65988.0,65987.0,0.321]
[1718608463285,0.01623125,65988.0,65987.0,0.321]
[1718608463533,0.01623125,65988.0,65987.0,0.34332537]
[1718608463752,0.01623125,65988.0,65987.0,0.321]
[1718608464838,0.13882868,65990.0,65987.0,0.321]
[1718608465051,0.00791133,65988.0,65987.0,0.321]
[1718608465291,0.303064,65993.0,65987.0,0.321]
[1718608465292,0.454596,65993.0,65987.0,0.321]
[1718608465539,0.00791133,65988.0,65987.0,0.321]
[1718608465779,0.00791329,65992.0,65987.0,0.321]
[1718608466001,0.00791133,65988.0,65987.0,0.1939]
[1718608466391,0.005,65990.0,65987.0,0.321]
[1718608466650,0.151535,65991.0,65988.0,0.03768222]
[1718608466886,0.303067,65992.0,65988.0,0.03768222]
[1718608467106,0.09963581,65991.0,65990.0,0.1271]
[1718608467284,0.55424181,65991.0,65990.0,0.1271]
[1718608467766,0.85731281,65991.0,65990.0,0.1271]
[1718608467996,0.09963581,65982.0,65979.0,0.4372]
[1718608468220,0.07604389,65981.0,65979.0,0.48092]
[1718608468446,0.151552,65984.0,65979.0,0.48092]
[1718608468662,0.25118781,65984.0,65979.0,0.48092]
[1718608468877,0.151555,65983.0,65980.0,0.060802]
[1718608469341,0.25119081,65983.0,65980.0,0.060802]
[1718608469522,0.25119081,65983.0,65979.0,0.4372]
[1718608469867,0.151555,65983.0,65979.0,0.4372]
[1718608470082,0.151558,65981.0,65979.0,0.4372]
[1718608470319,0.37916589,65980.0,65978.0,0.1271]
[1718608470539,0.85745081,65979.0,65978.0,0.1271]
[1718608471177,0.55432481,65979.0,65978.0,0.1271]
[1718608471390,0.151563,65979.0,65978.0,0.1271]
[1718608471811,0.25119881,65979.0,65978.0,0.1271]
[1718608472039,0.151574,65975.0,65973.0,0.4328]
[1718608472243,0.151574,65975.0,65974.0,0.1271]
[1718608472900,0.09963581,65976.0,65974.0,0.1271]
[1718608472901,0.25120681,65976.0,65974.0,0.1271]
[1718608473136,0.09963581,65977.0,65974.0,0.1271]
[1718608473369,0.001,65975.0,65974.0,0.1271]
[1718608473583,0.304145,65975.0,65974.0,0.1271]
[1718608473790,0.456717,65975.0,65974.0,0.1411]
[1718608473997,0.55635281,65975.0,65974.0,0.1411]
[1718608474204,0.455717,65975.0,65974.0,0.1271]
[1718608474455,0.001,65975.0,65974.0,0.184475]
[1718608474662,0.001,65975.0,65974.0,0.198475]
[1718608474863,0.00893646,65975.0,65974.0,0.184475]
[1718608475294,0.46465346,65975.0,65974.0,0.198475]
[1718608475509,0.16050846,65975.0,65974.0,0.198475]
[1718608475757,0.16050846,65975.0,65974.0,0.210475]
[1718608476172,0.76679846,65975.0,65974.0,0.210475]
[1718608476394,0.76679846,65975.0,65974.0,0.1411]
[1718608476611,0.16150846,65975.0,65974.0,0.1531]
[1718608478340,0.00993646,65975.0,65974.0,0.1531]
[1718608480694,0.002,65975.0,65974.0,0.1531]
[1718608481109,0.002,65975.0,65974.0,0.36374961]